{"text_format":"1","workbook":"xlsx","n_sheets":13,"sheets":["Inledn.","Ducbestyckning","Gruppschema","Blad1","Blad2","Blad21","Blad22","Blad101","Blad102","Blad103","Blad201","Blad202","Blad203"],"not_rendered":{"charts":0,"images":25,"macros":0,"external_links":0,"defined_names":3,"comments":0,"pivot_tables":0},"unopened":[],"bounds":{"document_bytes":16777216,"sheet_cells":100000,"rows_first":2000,"rows_last":500,"rows_between":2000,"halvings":0,"cell_chars":16384,"cell_head_chars":4096},"cells_cut":0,"cells_raw":0,"read":"whole","date_system":"1900"}

{"sheet":"Inledn.","index":0,"n_rows":45,"n_cols":21,"rows_kept":45,"cut":false,"hidden":false,"merged":[]}
["N2 Standard Normskåp med XE16-Com"]
["Objekt","Namn","R","B"]
["RELATION/BYGGHANDLING","RELATIONSHANDLING/BYGGHANDLING","X",null,null,null,{"$f":"CONCATENATE(J3,K3)","v":"RELATIONSHANDLING"},null,null,{"$f":"IF(C3>0,\"RELATIONSHANDLING\",\"\")","v":"RELATIONSHANDLING"},{"$f":"IF(D3>0,\"BYGGHANDLING\",\"\")","v":""}]
["Apparatskåpsbeteckning"]
["Placering el. betjäning",null,null,null,null,null,null,null,null,null,null,null,null,null,null,null,null,null,null,null,"OBS! "]
["Anläggningsnamn",null,null,null,null,null,null,null,null,null,null,null,null,null,null,null,null,null,null,null,"Fyll i all information i de vita rutorna till vänster."]
["Stad",null,null,null,null,null,null,null,null,null,null,null,null,null,null,null,null,null,null,null,"Befintlig text, beteckningar och kabelnummer är endast förslag."]
["Datum",null,null,null,null,null,null,null,null,null,null,null,null,null,null,null,null,null,null,null,"Printa sedan ut alla sidor."]
["Arbetsnummer = projektnr.",null,null,null,null,null,null,null,null,null,null,null,null,null,null,null,null,null,null,null,"I rutorna \"Typ(DI,Pl,AI)\" skrivs aktuell styrsignal in med ett X, dvs om det är digital, analog eller pulsingång."]
[]
["Referens"]
["Revidering av","SN "]
[]
[null,null,null,null,null,"Kabelnummer"]
["Inkommande matning",null,null,null,null,"INK"]
["Säkring S1","MANÖVER 230 VAC"]
["Säkring S2","MATNING 1",null,null,null,1]
["Säkring S3","MATNING 2",null,null,null,2]
["Säkring S4","MATNING 3",null,null,null,3]
["Säkring S5","MATNING 4",null,null,null,4]
[null,null,"DI","AI","PI"]
["Universal ingång 1","Reserv UI 1",null,null,null,301,{"$f":"CONCATENATE(H22,I22,J22)","v":""},{"$f":"IF(C22>0,\" (Digital ingång)\",\"\")","v":""},{"$f":"IF(D22>0,\" (Analog ingång)\",\"\")","v":""},{"$f":"IF(E22>0,\" (Pulsingång)\",\"\")","v":""}]
["Universal ingång 2","Reserv UI 2",null,null,null,302,{"$f":"CONCATENATE(H23,I23,J23)","v":""},{"$f":"IF(C23>0,\" (Digital ingång)\",\"\")","v":""},{"$f":"IF(D23>0,\" (Analog ingång)\",\"\")","v":""},{"$f":"IF(E23>0,\" (Pulsingång)\",\"\")","v":""}]
["Universal ingång 3","Reserv UI 3",null,null,null,303,"","","",""]
["Universal ingång 4","Reserv UI 4",null,null,null,304,"","","",""]
["Universal ingång 5","Reserv UI 5",null,null,null,305,"","","",""]
["Universal ingång 6","Reserv UI 6",null,null,null,306,"","","",""]
["Universal ingång 7","Reserv UI 7",null,null,null,307,"","","",""]
["Universal ingång 8","Reserv UI 8",null,null,null,308,"","","",""]
[]
[]
["Digital utgång 1","Reserv DO 1",null,null,null,101," (Digital utgång)"]
["Digital utgång 2","Reserv DO 2",null,null,null,103," (Digital utgång)"]
["Digital utgång 3","Reserv DO 3",null,null,null,105," (Digital utgång)"]
["Digital utgång 4","Reserv DO 4",null,null,null,107," (Digital utgång)"]
[]
["Analog utgång 1","Reserv AO 1",null,null,null,309," (Analog utgång)"]
["Analog utgång 2","Reserv AO 2",null,null,null,310," (Analog utgång)"]
["Analog utgång 3","Reserv AO 3",null,null,null,311," (Analog utgång)"]
["Analog utgång 4","Reserv AO 4",null,null,null,312," (Analog utgång)"]
[]
["DUC-Kom.",null,null,null,null,901]
["Modbus","Modbus",null,null,null,903]
["M-Bus",null,null,null,null,905]
["TCP/IP",null,null,null,null,"TCP/IP"]

{"sheet":"Ducbestyckning","index":1,"n_rows":38,"n_cols":24,"rows_kept":38,"cut":false,"hidden":false,"merged":[[12,5,12,12],[13,5,13,12],[36,20,36,21],[37,20,37,21],[30,1,37,1],[30,11,37,14],[30,15,31,19],[30,20,30,21],[37,7,37,8],[37,9,37,10],[36,15,37,19],[34,15,35,19],[35,20,35,21],[26,1,29,1],[26,16,26,23],[6,1,9,1],[10,1,13,1],[14,1,17,1],[18,1,21,1],[22,1,25,1],[7,5,7,12],[8,5,8,12],[9,5,9,12],[34,20,34,21],[13,16,13,23],[14,16,14,23],[18,16,18,23],[19,16,19,23],[14,5,14,12],[18,5,18,12],[19,5,19,12],[20,5,20,12],[21,5,21,12],[7,16,7,23],[28,5,28,12],[11,5,11,12],[1,12,1,13],[30,22,30,23],[31,20,33,21],[31,22,33,23],[32,15,33,19],[8,16,8,23],[9,16,9,23],[10,16,10,23],[11,16,11,23],[12,16,12,23],[10,5,10,12],[27,16,27,23],[28,16,28,23],[25,5,25,12],[26,5,26,12],[27,5,27,12],[1,14,1,15],[1,16,1,17],[20,16,20,23],[21,16,21,23],[25,16,25,23],[1,18,1,19],[1,20,1,21],[1,22,1,23],[1,10,1,11],[2,1,5,1],[1,2,1,3],[1,4,1,5],[1,6,1,7],[1,8,1,9]]}
[]
[null,null,0,null,1,null,2,null,3,null,4,null,5,null,6,null,7,null,8,null,9,null,10]
[null,"A"]
[null,null,null,"Ducbestyckning"]
[]
[null,null,null,"Universal in"]
[null,"B",null,"Plint nr.","I/O","Betjänar:"]
[null,null,null,"1:1",1,{"$f":"CONCATENATE(Inledn.!B22,Inledn.!G22)","v":"Reserv UI 1"}]
[null,null,null,"1:2",2,{"$f":"CONCATENATE(Inledn.!B23,Inledn.!G23)","v":"Reserv UI 2"}]
[null,null,null,"1:3",3,{"$f":"CONCATENATE(Inledn.!B24,Inledn.!G24)","v":"Reserv UI 3"}]
[null,"C",null,"1:4",4,{"$f":"CONCATENATE(Inledn.!B25,Inledn.!G25)","v":"Reserv UI 4"}]
[null,null,null,"1:5",5,{"$f":"CONCATENATE(Inledn.!B26,Inledn.!G26)","v":"Reserv UI 5"}]
[null,null,null,"1:6",6,{"$f":"CONCATENATE(Inledn.!B27,Inledn.!G27)","v":"Reserv UI 6"}]
[null,null,null,"1:7",7,{"$f":"CONCATENATE(Inledn.!B28,Inledn.!G28)","v":"Reserv UI 7"}]
[null,"D",null,"1:8",8,{"$f":"CONCATENATE(Inledn.!B29,Inledn.!G29)","v":"Reserv UI 8"}]
[]
[null,null,null,"Digital ut"]
[null,null,null,"Plint nr.","I/O","Betjänar:"]
[null,"E",null,"1:1",1,{"$f":"CONCATENATE(Inledn.!B32,Inledn.!G32)","v":"Reserv DO 1 (Digital utgång)"}]
[null,null,null,"1:2",2,{"$f":"CONCATENATE(Inledn.!B33,Inledn.!G33)","v":"Reserv DO 2 (Digital utgång)"}]
[null,null,null,"1:3",3,{"$f":"CONCATENATE(Inledn.!B34,Inledn.!G34)","v":"Reserv DO 3 (Digital utgång)"}]
[null,null,null,"1:4",4,{"$f":"CONCATENATE(Inledn.!B35,Inledn.!G35)","v":"Reserv DO 4 (Digital utgång)"}]
[null,"F"]
[null,null,null,"Analog ut"]
[null,null,null,"Plint nr.","I/O","Betjänar:"]
[null,null,null,"1:1",1,{"$f":"CONCATENATE(Inledn.!B37,Inledn.!G37)","v":"Reserv AO 1 (Analog utgång)"}]
[null,"G",null,"1:2",2,{"$f":"CONCATENATE(Inledn.!B38,Inledn.!G38)","v":"Reserv AO 2 (Analog utgång)"}]
[null,null,null,"1:3",3,{"$f":"CONCATENATE(Inledn.!B39,Inledn.!G39)","v":"Reserv AO 3 (Analog utgång)"}]
[null,null,null,"1:4",4,{"$f":"CONCATENATE(Inledn.!B40,Inledn.!G40)","v":"Reserv AO 4 (Analog utgång)"}]
[]
[null,"H",null,null,null,null,null,null,null,null,null,null,null,null,null,{"$f":"CONCATENATE(Inledn.!B4,\", \",Inledn.!B5)","v":", "},null,null,null,null,"ARBETSNUMMER",null,"RITNINGSNUMMER"]
[null,null,null,null,null,null,null,null,null,null,null,null,null,null,null,null,null,null,null,null,{"$f":"Inledn.!B9","v":0},null,{"$f":"CONCATENATE(U32,\"00\",X36)","v":"000"}]
[null,null,null,null,null,null,null,null,null,null,null,null,null,null,null,{"$f":"CONCATENATE(Inledn.!B6,\", \",Inledn.!B7)","v":", "}]
[]
[null,null,null,null,null,null,null,null,null,null,null,null,null,null,null,"DUCBESTYCKNING",null,null,null,null,"HANDLÄGGES AV",null,"RITAD AV","BLAD"]
[null,null,null,null,null,null,null,null,null,null,null,null,null,null,null,null,null,null,null,null,{"$f":"Inledn.!B11","v":0},null,"Kjell C"]
[null,null,null,null,null,null,null,null,null,null,null,null,null,null,null,{"$f":"Inledn.!G3","v":"RELATIONSHANDLING"},null,null,null,null,"Datum",null,"REV.","FORTS.BL"]
[null,null,"NR.","ÄNDRING",20220512,"SIGN.","DATUM","010-330 80 00",null,"www.bastec.se",null,null,null,null,null,null,null,null,null,null,{"$f":"Inledn.!B8","v":"00:00:00"},null,{"$f":"Inledn.!B12","v":"SN "}]

{"sheet":"Gruppschema","index":2,"n_rows":31,"n_cols":11,"rows_kept":31,"cut":false,"hidden":false,"merged":[[30,2,31,6],[23,3,23,7],[24,3,24,7],[25,3,25,7],[26,3,26,7],[27,3,27,7],[29,2,29,6],[22,3,22,7],[11,3,11,7],[12,3,12,7],[13,3,13,7],[14,3,14,7],[15,3,15,7],[16,3,16,7],[17,3,17,7],[18,3,18,7],[19,3,19,7],[20,3,20,7],[21,3,21,7],[8,3,8,7],[10,3,10,7],[9,3,9,7],[2,2,3,2],[2,10,3,10],[2,9,3,9],[2,8,3,8],[2,3,3,7],[4,3,4,7],[5,3,5,7],[6,3,6,7],[7,3,7,7]]}
[]
[]
[null,null,"Grupp Nr:","Gruppen omfattar:",null,null,null,null,"Säkring Amp:","Area Kvmm:","Ö-ström Amp."]
[]
[null,null,"S1",{"$f":"Inledn.!B16","v":"MANÖVER 230 VAC"},null,null,null,null,6,1.5]
[null,null,"S2",{"$f":"Inledn.!B17","v":"MATNING 1"},null,null,null,null,10,1.5]
[null,null,"S3",{"$f":"Inledn.!B18","v":"MATNING 2"},null,null,null,null,10,1.5]
[null,null,"S4",{"$f":"Inledn.!B19","v":"MATNING 3"},null,null,null,null,10,1.5]
[null,null,"S5",{"$f":"Inledn.!B20","v":"MATNING 4"},null,null,null,null,10,1.5]
[]
[]
[]
[]
[]
[]
[]
[]
[]
[]
[]
[]
[]
[]
[]
[]
[]
[]
[]
[]
[null,null,{"$f":"CONCATENATE(Inledn.!B4,\", \",Inledn.!B5)","v":", "}]
[null,null,{"$f":"CONCATENATE(Inledn.!B6,\", \",Inledn.!B7)","v":", "}]

{"sheet":"Blad1","index":3,"n_rows":38,"n_cols":24,"rows_kept":38,"cut":false,"hidden":false,"merged":[[1,22,1,23],[35,20,35,21],[1,10,1,11],[1,12,1,13],[1,14,1,15],[1,16,1,17],[1,18,1,19],[31,20,33,21],[31,22,33,23],[30,20,30,21],[30,22,30,23],[1,20,1,21],[30,11,37,14],[37,20,37,21],[30,15,31,19],[32,15,33,19],[34,20,34,21],[36,20,36,21],[30,1,37,1],[34,15,35,19],[36,15,37,19],[37,7,37,8],[37,9,37,10],[1,2,1,3],[1,4,1,5],[1,6,1,7],[1,8,1,9],[2,1,5,1],[6,1,9,1],[14,1,17,1],[18,1,21,1],[22,1,25,1],[26,1,29,1],[10,1,13,1]]}
[]
[null,null,0,null,1,null,2,null,3,null,4,null,5,null,6,null,7,null,8,null,9,null,10]
[null,"A"]
[]
[]
[]
[null,"B"]
[]
[]
[]
[null,"C"]
[]
[]
[]
[null,"D"]
[]
[]
[]
[null,"E"]
[]
[]
[]
[null,"F"]
[]
[]
[]
[null,"G"]
[]
[]
[]
[null,"H",null,null,null,null,null,null,null,null,null,null,null,null,null,{"$f":"CONCATENATE(Inledn.!B4,\", \",Inledn.!B5)","v":", "},null,null,null,null,"ARBETSNUMMER",null,"RITNINGSNUMMER"]
[null,null,null,null,null,null,null,null,null,null,null,null,null,null,null,null,null,null,null,null,{"$f":"Inledn.!B9","v":0},null,{"$f":"CONCATENATE(U32,\"00\",X36)","v":"0001"}]
[null,null,null,null,null,null,null,null,null,null,null,null,null,null,null,{"$f":"CONCATENATE(Inledn.!B6,\", \",Inledn.!B7)","v":", "}]
[]
[null,null,null,null,null,null,null,null,null,null,null,null,null,null,null,"FÖRTECKNING, PLACERING & APPARATLISTA",null,null,null,null,"HANDLÄGGES AV",null,"RITAD AV","BLAD"]
[null,null,null,null,null,null,null,null,null,null,null,null,null,null,null,null,null,null,null,null,{"$f":"Inledn.!B11","v":0},null,"Kjell C",1]
[null,null,null,null,null,null,null,null,null,null,null,null,null,null,null,{"$f":"Inledn.!G3","v":"RELATIONSHANDLING"},null,null,null,null,"Datum",null,"REV.","FORTS.BL"]
[null,null,"NR.","ÄNDRING",{"$f":"Ducbestyckning!E38","v":20220512},"SIGN.","DATUM",{"$f":"Ducbestyckning!H38","v":"010-330 80 00"},null,{"$f":"Ducbestyckning!J38","v":"www.bastec.se"},null,null,null,null,null,null,null,null,null,null,{"$f":"Inledn.!B8","v":"00:00:00"},null,{"$f":"Inledn.!B12","v":"SN "},2]

{"sheet":"Blad2","index":4,"n_rows":38,"n_cols":24,"rows_kept":38,"cut":false,"hidden":false,"merged":[[22,1,25,1],[34,20,34,21],[35,20,35,21],[36,15,37,19],[36,20,36,21],[37,20,37,21],[34,15,35,19],[30,15,31,19],[30,22,30,23],[31,20,33,21],[31,22,33,23],[32,15,33,19],[30,20,30,21],[1,14,1,15],[1,16,1,17],[1,18,1,19],[1,20,1,21],[1,22,1,23],[1,12,1,13],[37,7,37,8],[37,9,37,10],[2,1,5,1],[1,2,1,3],[1,4,1,5],[1,6,1,7],[1,8,1,9],[1,10,1,11],[26,1,29,1],[30,1,37,1],[30,11,37,14],[6,1,9,1],[10,1,13,1],[14,1,17,1],[18,1,21,1]]}
[]
[null,null,0,null,1,null,2,null,3,null,4,null,5,null,6,null,7,null,8,null,9,null,10]
[null,"A"]
[]
[]
[]
[null,"B"]
[]
[]
[]
[null,"C"]
[]
[null,null,null,null,null,null,null,null,null,null,null,null,null,null,null,null,null,null,{"$f":"Inledn.!B16","v":"MANÖVER 230 VAC"}]
[]
[null,"D"]
[null,null,null,null,null,null,null,null,null,null,null,null,null,null,null,null,null,null,{"$f":"Inledn.!B17","v":"MATNING 1"}]
[null,null,null,null,null,null,null,null,null,null,null,null,null,null,null,null,null,null,"MATNING 230 VAC"]
[]
[null,"E"]
[null,null,null,null,null,null,null,null,null,null,null,null,null,null,null,null,null,null,{"$f":"Inledn.!B18","v":"MATNING 2"}]
[null,null,null,null,null,null,null,null,null,null,null,null,null,null,null,null,null,null,"MATNING 230 VAC"]
[]
[null,"F"]
[null,null,null,null,null,null,null,null,null,null,null,null,null,null,null,null,null,null,{"$f":"Inledn.!B19","v":"MATNING 3"}]
[null,null,null,null,null,null,null,null,null,null,null,null,null,null,null,null,null,null,"MATNING 230 VAC"]
[]
[null,"G"]
[null,null,null,null,null,null,null,null,null,null,null,null,null,null,null,null,null,null,{"$f":"Inledn.!B20","v":"MATNING 4"}]
[null,null,null,null,null,null,null,null,null,null,null,null,null,null,null,null,null,null,"MATNING 230 VAC"]
[]
[null,"H",null,null,null,null,null,null,null,null,null,null,null,null,null,{"$f":"CONCATENATE(Inledn.!B4,\", \",Inledn.!B5)","v":", "},null,null,null,null,"ARBETSNUMMER",null,"RITNINGSNUMMER"]
[null,null,null,null,null,null,null,null,null,null,null,null,null,null,null,null,null,null,null,null,{"$f":"Inledn.!B9","v":0},null,{"$f":"CONCATENATE(U32,\"00\",X36)","v":"0002"}]
[null,null,null,null,null,null,null,null,null,null,null,null,null,null,null,{"$f":"CONCATENATE(Inledn.!B6,\", \",Inledn.!B7)","v":", "}]
[]
[null,null,null,null,null,null,null,null,null,null,null,null,null,null,null,"KRETSSCHEMA KRAFT",null,null,null,null,"HANDLÄGGES AV",null,"RITAD AV","BLAD"]
[null,null,null,null,null,null,null,null,null,null,null,null,null,null,null,null,null,null,null,null,{"$f":"Inledn.!B11","v":0},null,"Kjell C",2]
[null,null,null,null,null,null,null,null,null,null,null,null,null,null,null,{"$f":"Inledn.!G3","v":"RELATIONSHANDLING"},null,null,null,null,"Datum",null,"REV.","FORTS.BL"]
[null,null,"NR.","ÄNDRING",{"$f":"Ducbestyckning!E38","v":20220512},"SIGN.","DATUM",{"$f":"Ducbestyckning!H38","v":"010-330 80 00"},null,{"$f":"Ducbestyckning!J38","v":"www.bastec.se"},null,null,null,null,null,null,null,null,null,null,{"$f":"Inledn.!B8","v":"00:00:00"},null,{"$f":"Inledn.!B12","v":"SN "},21]

{"sheet":"Blad21","index":5,"n_rows":38,"n_cols":24,"rows_kept":38,"cut":false,"hidden":false,"merged":[[22,1,25,1],[34,20,34,21],[35,20,35,21],[36,15,37,19],[36,20,36,21],[37,20,37,21],[34,15,35,19],[30,15,31,19],[30,22,30,23],[31,20,33,21],[31,22,33,23],[32,15,33,19],[30,20,30,21],[1,14,1,15],[1,16,1,17],[1,18,1,19],[1,20,1,21],[1,22,1,23],[1,12,1,13],[37,7,37,8],[37,9,37,10],[2,1,5,1],[1,2,1,3],[1,4,1,5],[1,6,1,7],[1,8,1,9],[1,10,1,11],[26,1,29,1],[30,1,37,1],[30,11,37,14],[6,1,9,1],[10,1,13,1],[14,1,17,1],[18,1,21,1]]}
[]
[null,null,0,null,1,null,2,null,3,null,4,null,5,null,6,null,7,null,8,null,9,null,10]
[null,"A"]
[]
[]
[]
[null,"B"]
[]
[]
[]
[null,"C"]
[]
[]
[]
[null,"D"]
[]
[]
[]
[null,"E"]
[]
[]
[]
[null,"F"]
[]
[]
[]
[null,"G"]
[]
[]
[]
[null,"H",null,null,null,null,null,null,null,null,null,null,null,null,null,{"$f":"CONCATENATE(Inledn.!B4,\", \",Inledn.!B5)","v":", "},null,null,null,null,"ARBETSNUMMER",null,"RITNINGSNUMMER"]
[null,null,null,null,null,null,null,null,null,null,null,null,null,null,null,null,null,null,null,null,{"$f":"Inledn.!B9","v":0},null,{"$f":"CONCATENATE(U32,\"00\",X36)","v":"00021"}]
[null,null,null,null,null,null,null,null,null,null,null,null,null,null,null,{"$f":"CONCATENATE(Inledn.!B6,\", \",Inledn.!B7)","v":", "}]
[]
[null,null,null,null,null,null,null,null,null,null,null,null,null,null,null,"KRETSSCHEMA MANÖVER",null,null,null,null,"HANDLÄGGES AV",null,"RITAD AV","BLAD"]
[null,null,null,null,null,null,null,null,null,null,null,null,null,null,null,null,null,null,null,null,{"$f":"Inledn.!B11","v":0},null,"Kjell C",21]
[null,null,null,null,null,null,null,null,null,null,null,null,null,null,null,{"$f":"Inledn.!G3","v":"RELATIONSHANDLING"},null,null,null,null,"Datum",null,"REV.","FORTS.BL"]
[null,null,"NR.","ÄNDRING",{"$f":"Ducbestyckning!E38","v":20220512},"SIGN.","DATUM",{"$f":"Ducbestyckning!H38","v":"010-330 80 00"},null,{"$f":"Ducbestyckning!J38","v":"www.bastec.se"},null,null,null,null,null,null,null,null,null,null,{"$f":"Inledn.!B8","v":"00:00:00"},null,{"$f":"Inledn.!B12","v":"SN "},22]

{"sheet":"Blad22","index":6,"n_rows":38,"n_cols":24,"rows_kept":38,"cut":false,"hidden":false,"merged":[[22,1,25,1],[34,20,34,21],[35,20,35,21],[36,15,37,19],[36,20,36,21],[37,20,37,21],[34,15,35,19],[30,15,31,19],[30,22,30,23],[31,20,33,21],[31,22,33,23],[32,15,33,19],[30,20,30,21],[1,14,1,15],[1,16,1,17],[1,18,1,19],[1,20,1,21],[1,22,1,23],[1,12,1,13],[37,7,37,8],[37,9,37,10],[2,1,5,1],[1,2,1,3],[1,4,1,5],[1,6,1,7],[1,8,1,9],[1,10,1,11],[26,1,29,1],[30,1,37,1],[30,11,37,14],[6,1,9,1],[10,1,13,1],[14,1,17,1],[18,1,21,1]]}
[]
[null,null,0,null,1,null,2,null,3,null,4,null,5,null,6,null,7,null,8,null,9,null,10]
[null,"A"]
[]
[]
[null,null,null,null,null,null,null,null,null,null,null,null,null,null,null,null,null,null,null,null,{"$f":"Inledn.!B32","v":"Reserv DO 1"}]
[null,"B",null,null,null,null,null,null,null,null,null,null,null,null,null,null,null,null,null,null,"MANÖVER"]
[]
[null,null,null,null,null,null,null,null,null,null,null,null,null,null,null,null,null,null,null,null,{"$f":"Inledn.!B33","v":"Reserv DO 2"}]
[null,null,null,null,null,null,null,null,null,null,null,null,null,null,null,null,null,null,null,null,"MANÖVER"]
[null,"C"]
[null,null,null,null,null,null,null,null,null,null,null,null,null,null,null,null,null,null,null,null,{"$f":"Inledn.!B34","v":"Reserv DO 3"}]
[null,null,null,null,null,null,null,null,null,null,null,null,null,null,null,null,null,null,null,null,"MANÖVER"]
[]
[null,"D",null,null,null,null,null,null,null,null,null,null,null,null,null,null,null,null,null,null,{"$f":"Inledn.!B35","v":"Reserv DO 4"}]
[null,null,null,null,null,null,null,null,null,null,null,null,null,null,null,null,null,null,null,null,"MANÖVER"]
[]
[]
[null,"E"]
[]
[]
[]
[null,"F"]
[]
[]
[]
[null,"G"]
[]
[]
[]
[null,"H",null,null,null,null,null,null,null,null,null,null,null,null,null,{"$f":"CONCATENATE(Inledn.!B4,\", \",Inledn.!B5)","v":", "},null,null,null,null,"ARBETSNUMMER",null,"RITNINGSNUMMER"]
[null,null,null,null,null,null,null,null,null,null,null,null,null,null,null,null,null,null,null,null,{"$f":"Inledn.!B9","v":0},null,{"$f":"CONCATENATE(U32,\"00\",X36)","v":"00022"}]
[null,null,null,null,null,null,null,null,null,null,null,null,null,null,null,{"$f":"CONCATENATE(Inledn.!B6,\", \",Inledn.!B7)","v":", "}]
[]
[null,null,null,null,null,null,null,null,null,null,null,null,null,null,null,"KRETSSCHEMA MANÖVER",null,null,null,null,"HANDLÄGGES AV",null,"RITAD AV","BLAD"]
[null,null,null,null,null,null,null,null,null,null,null,null,null,null,null,null,null,null,null,null,{"$f":"Inledn.!B11","v":0},null,"Kjell C",22]
[null,null,null,null,null,null,null,null,null,null,null,null,null,null,null,{"$f":"Inledn.!G3","v":"RELATIONSHANDLING"},null,null,null,null,"Datum",null,"REV.","FORTS.BL"]
[null,null,"NR.","ÄNDRING",{"$f":"Ducbestyckning!E38","v":20220512},"SIGN.","DATUM",{"$f":"Ducbestyckning!H38","v":"010-330 80 00"},null,{"$f":"Ducbestyckning!J38","v":"www.bastec.se"},null,null,null,null,null,null,null,null,null,null,{"$f":"Inledn.!B8","v":"00:00:00"},null,{"$f":"Inledn.!B12","v":"SN "},101]

{"sheet":"Blad101","index":7,"n_rows":38,"n_cols":24,"rows_kept":38,"cut":false,"hidden":false,"merged":[[22,1,25,1],[34,20,34,21],[35,20,35,21],[36,15,37,19],[36,20,36,21],[37,20,37,21],[34,15,35,19],[30,15,31,19],[30,22,30,23],[31,20,33,21],[31,22,33,23],[32,15,33,19],[30,20,30,21],[1,14,1,15],[1,16,1,17],[1,18,1,19],[1,20,1,21],[1,22,1,23],[1,12,1,13],[37,7,37,8],[37,9,37,10],[2,1,5,1],[1,2,1,3],[1,4,1,5],[1,6,1,7],[1,8,1,9],[1,10,1,11],[26,1,29,1],[30,1,37,1],[30,11,37,14],[6,1,9,1],[10,1,13,1],[14,1,17,1],[18,1,21,1]]}
[]
[null,null,0,null,1,null,2,null,3,null,4,null,5,null,6,null,7,null,8,null,9,null,10]
[null,"A"]
[]
[]
[]
[null,"B"]
[]
[]
[]
[null,"C"]
[]
[]
[]
[null,"D"]
[]
[]
[]
[null,"E"]
[]
[]
[]
[null,"F"]
[]
[]
[]
[null,"G"]
[]
[]
[]
[null,"H",null,null,null,null,null,null,null,null,null,null,null,null,null,{"$f":"CONCATENATE(Inledn.!B4,\", \",Inledn.!B5)","v":", "},null,null,null,null,"ARBETSNUMMER",null,"RITNINGSNUMMER"]
[null,null,null,null,null,null,null,null,null,null,null,null,null,null,null,null,null,null,null,null,{"$f":"Inledn.!B9","v":0},null,{"$f":"CONCATENATE(U32,\"00\",X36)","v":"000101"}]
[null,null,null,null,null,null,null,null,null,null,null,null,null,null,null,{"$f":"CONCATENATE(Inledn.!B6,\", \",Inledn.!B7)","v":", "}]
[]
[null,null,null,null,null,null,null,null,null,null,null,null,null,null,null,"KRETSSCHEMA DUC",null,null,null,null,"HANDLÄGGES AV",null,"RITAD AV","BLAD"]
[null,null,null,null,null,null,null,null,null,null,null,null,null,null,null,null,null,null,null,null,{"$f":"Inledn.!B11","v":0},null,"Kjell C",101]
[null,null,null,null,null,null,null,null,null,null,null,null,null,null,null,{"$f":"Inledn.!G3","v":"RELATIONSHANDLING"},null,null,null,null,"Datum",null,"REV.","FORTS.BL"]
[null,null,"NR.","ÄNDRING",{"$f":"Ducbestyckning!E38","v":20220512},"SIGN.","DATUM",{"$f":"Ducbestyckning!H38","v":"010-330 80 00"},null,{"$f":"Ducbestyckning!J38","v":"www.bastec.se"},null,null,null,null,null,null,null,null,null,null,{"$f":"Inledn.!B8","v":"00:00:00"},null,{"$f":"Inledn.!B12","v":"SN "},102]

{"sheet":"Blad102","index":8,"n_rows":38,"n_cols":24,"rows_kept":38,"cut":false,"hidden":false,"merged":[[22,1,25,1],[34,20,34,21],[35,20,35,21],[36,15,37,19],[36,20,36,21],[37,20,37,21],[34,15,35,19],[30,15,31,19],[30,22,30,23],[31,20,33,21],[31,22,33,23],[32,15,33,19],[30,20,30,21],[1,14,1,15],[1,16,1,17],[1,18,1,19],[1,20,1,21],[1,22,1,23],[1,12,1,13],[37,7,37,8],[37,9,37,10],[2,1,5,1],[1,2,1,3],[1,4,1,5],[1,6,1,7],[1,8,1,9],[1,10,1,11],[26,1,29,1],[30,1,37,1],[30,11,37,14],[6,1,9,1],[10,1,13,1],[14,1,17,1],[18,1,21,1]]}
[]
[null,null,0,null,1,null,2,null,3,null,4,null,5,null,6,null,7,null,8,null,9,null,10]
[null,"A"]
[]
[]
[]
[null,"B",null,null,null,null,null,null,null,null,null,null,null,null,null,null,null,null,null,{"$f":"Inledn.!B22","v":"Reserv UI 1"}]
[null,null,null,null,null,null,null,null,null,null,null,null,null,null,null,null,null,null,null,{"$f":"Inledn.!G22","v":""}]
[]
[null,null,null,null,null,null,null,null,null,null,null,null,null,null,null,null,null,null,null,{"$f":"Inledn.!B23","v":"Reserv UI 2"}]
[null,"C",null,null,null,null,null,null,null,null,null,null,null,null,null,null,null,null,null,{"$f":"Inledn.!G23","v":""}]
[]
[null,null,null,null,null,null,null,null,null,null,null,null,null,null,null,null,null,null,null,{"$f":"Inledn.!B24","v":"Reserv UI 3"}]
[null,null,null,null,null,null,null,null,null,null,null,null,null,null,null,null,null,null,null,{"$f":"Inledn.!G24","v":""}]
[null,"D"]
[null,null,null,null,null,null,null,null,null,null,null,null,null,null,null,null,null,null,null,{"$f":"Inledn.!B25","v":"Reserv UI 4"}]
[null,null,null,null,null,null,null,null,null,null,null,null,null,null,null,null,null,null,null,{"$f":"Inledn.!G25","v":""}]
[]
[null,"E",null,null,null,null,null,null,null,null,null,null,null,null,null,null,null,null,null,{"$f":"Inledn.!B26","v":"Reserv UI 5"}]
[null,null,null,null,null,null,null,null,null,null,null,null,null,null,null,null,null,null,null,{"$f":"Inledn.!G26","v":""}]
[]
[null,null,null,null,null,null,null,null,null,null,null,null,null,null,null,null,null,null,null,{"$f":"Inledn.!B27","v":"Reserv UI 6"}]
[null,"F",null,null,null,null,null,null,null,null,null,null,null,null,null,null,null,null,null,{"$f":"Inledn.!G27","v":""}]
[]
[null,null,null,null,null,null,null,null,null,null,null,null,null,null,null,null,null,null,null,{"$f":"Inledn.!B28","v":"Reserv UI 7"}]
[null,null,null,null,null,null,null,null,null,null,null,null,null,null,null,null,null,null,null,{"$f":"Inledn.!G28","v":""}]
[null,"G"]
[null,null,null,null,null,null,null,null,null,null,null,null,null,null,null,null,null,null,null,{"$f":"Inledn.!B29","v":"Reserv UI 8"}]
[null,null,null,null,null,null,null,null,null,null,null,null,null,null,null,null,null,null,null,{"$f":"Inledn.!G29","v":""}]
[]
[null,"H",null,null,null,null,null,null,null,null,null,null,null,null,null,{"$f":"CONCATENATE(Inledn.!B4,\", \",Inledn.!B5)","v":", "},null,null,null,null,"ARBETSNUMMER",null,"RITNINGSNUMMER"]
[null,null,null,null,null,null,null,null,null,null,null,null,null,null,null,null,null,null,null,null,{"$f":"Inledn.!B9","v":0},null,{"$f":"CONCATENATE(U32,\"00\",X36)","v":"000102"}]
[null,null,null,null,null,null,null,null,null,null,null,null,null,null,null,{"$f":"CONCATENATE(Inledn.!B6,\", \",Inledn.!B7)","v":", "}]
[]
[null,null,null,null,null,null,null,null,null,null,null,null,null,null,null,"KRETSSCHEMA DUC",null,null,null,null,"HANDLÄGGES AV",null,"RITAD AV","BLAD"]
[null,null,null,null,null,null,null,null,null,null,null,null,null,null,null,null,null,null,null,null,{"$f":"Inledn.!B11","v":0},null,"Kjell C",102]
[null,null,null,null,null,null,null,null,null,null,null,null,null,null,null,{"$f":"Inledn.!G3","v":"RELATIONSHANDLING"},null,null,null,null,"Datum",null,"REV.",103]
[null,null,"NR.","ÄNDRING",{"$f":"Ducbestyckning!E38","v":20220512},"SIGN.","DATUM",{"$f":"Ducbestyckning!H38","v":"010-330 80 00"},null,{"$f":"Ducbestyckning!J38","v":"www.bastec.se"},null,null,null,null,null,null,null,null,null,null,{"$f":"Inledn.!B8","v":"00:00:00"},null,{"$f":"Inledn.!B12","v":"SN "},{"$f":"SUM(X36+1)","v":103}]

{"sheet":"Blad103","index":9,"n_rows":38,"n_cols":24,"rows_kept":38,"cut":false,"hidden":false,"merged":[[22,1,25,1],[34,20,34,21],[35,20,35,21],[36,15,37,19],[36,20,36,21],[37,20,37,21],[34,15,35,19],[30,15,31,19],[30,22,30,23],[31,20,33,21],[31,22,33,23],[32,15,33,19],[30,20,30,21],[1,14,1,15],[1,16,1,17],[1,18,1,19],[1,20,1,21],[1,22,1,23],[1,12,1,13],[37,7,37,8],[37,9,37,10],[2,1,5,1],[1,2,1,3],[1,4,1,5],[1,6,1,7],[1,8,1,9],[1,10,1,11],[26,1,29,1],[30,1,37,1],[30,11,37,14],[6,1,9,1],[10,1,13,1],[14,1,17,1],[18,1,21,1]]}
[]
[null,null,0,null,1,null,2,null,3,null,4,null,5,null,6,null,7,null,8,null,9,null,10]
[null,"A"]
[]
[null,null,null,null,null,null,null,null,null,null,null,null,null,null,null,null,null,null,null,null,{"$f":"Inledn.!B32","v":"Reserv DO 1"}]
[]
[null,"B"]
[null,null,null,null,null,null,null,null,null,null,null,null,null,null,null,null,null,null,null,null,{"$f":"Inledn.!B33","v":"Reserv DO 2"}]
[]
[]
[null,"C",null,null,null,null,null,null,null,null,null,null,null,null,null,null,null,null,null,null,{"$f":"Inledn.!B34","v":"Reserv DO 3"}]
[]
[]
[null,null,null,null,null,null,null,null,null,null,null,null,null,null,null,null,null,null,null,null,{"$f":"Inledn.!B35","v":"Reserv DO 4"}]
[null,"D"]
[]
[]
[]
[null,"E",null,null,null,null,null,null,null,null,null,null,null,null,null,null,null,null,null,{"$f":"Inledn.!B37","v":"Reserv AO 1"}]
[]
[]
[null,null,null,null,null,null,null,null,null,null,null,null,null,null,null,null,null,null,null,{"$f":"Inledn.!B38","v":"Reserv AO 2"}]
[null,"F"]
[]
[null,null,null,null,null,null,null,null,null,null,null,null,null,null,null,null,null,null,null,{"$f":"Inledn.!B39","v":"Reserv AO 3"}]
[]
[null,"G"]
[null,null,null,null,null,null,null,null,null,null,null,null,null,null,null,null,null,null,null,{"$f":"Inledn.!B40","v":"Reserv AO 4"}]
[]
[]
[null,"H",null,null,null,null,null,null,null,null,null,null,null,null,null,{"$f":"CONCATENATE(Inledn.!B4,\", \",Inledn.!B5)","v":", "},null,null,null,null,"ARBETSNUMMER",null,"RITNINGSNUMMER"]
[null,null,null,null,null,null,null,null,null,null,null,null,null,null,null,null,null,null,null,null,{"$f":"Inledn.!B9","v":0},null,{"$f":"CONCATENATE(U32,\"00\",X36)","v":"000103"}]
[null,null,null,null,null,null,null,null,null,null,null,null,null,null,null,{"$f":"CONCATENATE(Inledn.!B6,\", \",Inledn.!B7)","v":", "}]
[]
[null,null,null,null,null,null,null,null,null,null,null,null,null,null,null,"KRETSSCHEMA DUC",null,null,null,null,"HANDLÄGGES AV",null,"RITAD AV","BLAD"]
[null,null,null,null,null,null,null,null,null,null,null,null,null,null,null,null,null,null,null,null,{"$f":"Inledn.!B11","v":0},null,"Kjell C",103]
[null,null,null,null,null,null,null,null,null,null,null,null,null,null,null,{"$f":"Inledn.!G3","v":"RELATIONSHANDLING"},null,null,null,null,"Datum",null,"REV.","FORTS.BL"]
[null,null,"NR.","ÄNDRING",{"$f":"Ducbestyckning!E38","v":20220512},"SIGN.","DATUM",{"$f":"Ducbestyckning!H38","v":"010-330 80 00"},null,{"$f":"Ducbestyckning!J38","v":"www.bastec.se"},null,null,null,null,null,null,null,null,null,null,{"$f":"Inledn.!B8","v":"00:00:00"},null,{"$f":"Inledn.!B12","v":"SN "},201]

{"sheet":"Blad201","index":10,"n_rows":38,"n_cols":24,"rows_kept":38,"cut":false,"hidden":false,"merged":[[22,1,25,1],[34,20,34,21],[35,20,35,21],[36,15,37,19],[36,20,36,21],[37,20,37,21],[34,15,35,19],[30,15,31,19],[30,22,30,23],[31,20,33,21],[31,22,33,23],[32,15,33,19],[30,20,30,21],[1,14,1,15],[1,16,1,17],[1,18,1,19],[1,20,1,21],[1,22,1,23],[1,12,1,13],[37,7,37,8],[37,9,37,10],[2,1,5,1],[1,2,1,3],[1,4,1,5],[1,6,1,7],[1,8,1,9],[1,10,1,11],[26,1,29,1],[30,1,37,1],[30,11,37,14],[6,1,9,1],[10,1,13,1],[14,1,17,1],[18,1,21,1]]}
[]
[null,null,0,null,1,null,2,null,3,null,4,null,5,null,6,null,7,null,8,null,9,null,10]
[null,"A"]
[null,null,null,null,null,null,null,null,null,null,null,null,null,null,null,null,{"$f":"Inledn.!F32","v":101},null,null,{"$f":"J10","v":"Reserv DO 1"}]
[null,null,null,null,null,null,null,null,null,null,null,null,null,null,null,null,null,null,null,{"$f":"CONCATENATE(\"(POT.FRI KONT) SE BL.\",\" \",Blad22!X36)","v":"(POT.FRI KONT) SE BL. 22"}]
[null,null,null,null,null,{"$f":"Inledn.!F15","v":"INK"}]
[null,"B",null,null,null,null,null,null,null,null,null,null,null,null,null,null,{"$f":"Inledn.!F33","v":103},null,null,{"$f":"J13","v":"Reserv DO 2"}]
[null,null,null,null,null,null,null,null,null,null,null,null,null,null,null,null,null,null,null,{"$f":"CONCATENATE(\"(POT.FRI KONT) SE BL.\",\" \",Blad22!X36)","v":"(POT.FRI KONT) SE BL. 22"}]
[]
[null,null,null,null,null,null,null,null,null,{"$f":"Blad22!U6","v":"Reserv DO 1"},null,null,null,null,null,null,{"$f":"Inledn.!F34","v":105},null,null,{"$f":"J16","v":"Reserv DO 3"}]
[null,"C",null,null,null,{"$f":"Inledn.!F17","v":1},null,null,null,{"$f":"Blad2!S17","v":"MATNING 230 VAC"},null,null,null,null,null,null,null,null,null,{"$f":"CONCATENATE(\"(POT.FRI KONT) SE BL.\",\" \",Blad22!X36)","v":"(POT.FRI KONT) SE BL. 22"}]
[]
[null,null,null,null,null,null,null,null,null,{"$f":"Blad22!U9","v":"Reserv DO 2"},null,null,null,null,null,null,{"$f":"Inledn.!F35","v":107},null,null,{"$f":"J19","v":"Reserv DO 4"}]
[null,null,null,null,null,{"$f":"Inledn.!F18","v":2},null,null,null,{"$f":"Blad2!S21","v":"MATNING 230 VAC"},null,null,null,null,null,null,null,null,null,{"$f":"CONCATENATE(\"(POT.FRI KONT) SE BL.\",\" \",Blad22!X36)","v":"(POT.FRI KONT) SE BL. 22"}]
[null,"D"]
[null,null,null,null,null,null,null,null,null,{"$f":"Blad22!U12","v":"Reserv DO 3"}]
[null,null,null,null,null,{"$f":"Inledn.!F19","v":3},null,null,null,{"$f":"Blad2!S25","v":"MATNING 230 VAC"}]
[]
[null,"E",null,null,null,null,null,null,null,{"$f":"Blad22!U15","v":"Reserv DO 4"}]
[null,null,null,null,null,{"$f":"Inledn.!F20","v":4},null,null,null,{"$f":"Blad2!S29","v":"MATNING 230 VAC"}]
[]
[]
[null,"F"]
[]
[]
[]
[null,"G"]
[]
[]
[]
[null,"H",null,null,null,null,null,null,null,null,null,null,null,null,null,{"$f":"CONCATENATE(Inledn.!B4,\", \",Inledn.!B5)","v":", "},null,null,null,null,"ARBETSNUMMER",null,"RITNINGSNUMMER"]
[null,null,null,null,null,null,null,null,null,null,null,null,null,null,null,null,null,null,null,null,{"$f":"Inledn.!B9","v":0},null,{"$f":"CONCATENATE(U32,\"00\",X36)","v":"000201"}]
[null,null,null,null,null,null,null,null,null,null,null,null,null,null,null,{"$f":"CONCATENATE(Inledn.!B6,\", \",Inledn.!B7)","v":", "}]
[]
[null,null,null,null,null,null,null,null,null,null,null,null,null,null,null,"YTTRE FÖRBINDNINGSSCHEMA",null,null,null,null,"HANDLÄGGES AV",null,"RITAD AV","BLAD"]
[null,null,null,null,null,null,null,null,null,null,null,null,null,null,null,null,null,null,null,null,{"$f":"Inledn.!B11","v":0},null,"Kjell C",201]
[null,null,null,null,null,null,null,null,null,null,null,null,null,null,null,{"$f":"Inledn.!G3","v":"RELATIONSHANDLING"},null,null,null,null,"Datum",null,"REV.","FORTS.BL"]
[null,null,"NR.","ÄNDRING",{"$f":"Ducbestyckning!E38","v":20220512},"SIGN.","DATUM",{"$f":"Ducbestyckning!H38","v":"010-330 80 00"},null,{"$f":"Ducbestyckning!J38","v":"www.bastec.se"},null,null,null,null,null,null,null,null,null,null,{"$f":"Inledn.!B8","v":"00:00:00"},null,{"$f":"Inledn.!B12","v":"SN "},202]

{"sheet":"Blad202","index":11,"n_rows":38,"n_cols":24,"rows_kept":38,"cut":false,"hidden":false,"merged":[[22,1,25,1],[34,20,34,21],[35,20,35,21],[36,15,37,19],[36,20,36,21],[37,20,37,21],[34,15,35,19],[30,15,31,19],[30,22,30,23],[31,20,33,21],[31,22,33,23],[32,15,33,19],[30,20,30,21],[1,14,1,15],[1,16,1,17],[1,18,1,19],[1,20,1,21],[1,22,1,23],[1,12,1,13],[37,7,37,8],[37,9,37,10],[2,1,5,1],[1,2,1,3],[1,4,1,5],[1,6,1,7],[1,8,1,9],[1,10,1,11],[26,1,29,1],[30,1,37,1],[30,11,37,14],[6,1,9,1],[10,1,13,1],[14,1,17,1],[18,1,21,1]]}
[]
[null,null,0,null,1,null,2,null,3,null,4,null,5,null,6,null,7,null,8,null,9,null,10]
[null,"A"]
[]
[]
[null,null,null,null,null,{"$f":"Inledn.!F22","v":301},null,null,null,{"$f":"Inledn.!B22","v":"Reserv UI 1"},null,null,null,null,null,null,{"$f":"Inledn.!F37","v":309},null,null,null,{"$f":"Inledn.!B37","v":"Reserv AO 1"}]
[null,"B",null,null,null,null,null,null,null,{"$f":"CONCATENATE(Inledn.!G22,\" SE BL.102\")","v":" SE BL.102"},null,null,null,null,null,null,null,null,null,null,{"$f":"CONCATENATE(\"SE BL.\",\" \",Blad103!X36)","v":"SE BL. 103"}]
[]
[null,null,null,null,null,{"$f":"Inledn.!F23","v":302},null,null,null,{"$f":"Inledn.!B23","v":"Reserv UI 2"},null,null,null,null,null,null,{"$f":"Inledn.!F38","v":310},null,null,null,{"$f":"Inledn.!B38","v":"Reserv AO 2"}]
[null,null,null,null,null,null,null,null,null,{"$f":"CONCATENATE(Inledn.!G23,\" SE BL.102\")","v":" SE BL.102"},null,null,null,null,null,null,null,null,null,null,{"$f":"CONCATENATE(\"SE BL.\",\" \",Blad103!X36)","v":"SE BL. 103"}]
[null,"C"]
[null,null,null,null,null,{"$f":"Inledn.!F24","v":303},null,null,null,{"$f":"Inledn.!B24","v":"Reserv UI 3"},null,null,null,null,null,null,{"$f":"Inledn.!F39","v":311},null,null,null,{"$f":"Inledn.!B39","v":"Reserv AO 3"}]
[null,null,null,null,null,null,null,null,null,{"$f":"CONCATENATE(Inledn.!G24,\" SE BL.102\")","v":" SE BL.102"},null,null,null,null,null,null,null,null,null,null,{"$f":"CONCATENATE(\"SE BL.\",\" \",Blad103!X36)","v":"SE BL. 103"}]
[]
[null,"D",null,null,null,{"$f":"Inledn.!F25","v":304},null,null,null,{"$f":"Inledn.!B25","v":"Reserv UI 4"},null,null,null,null,null,null,{"$f":"Inledn.!F40","v":312},null,null,null,{"$f":"Inledn.!B40","v":"Reserv AO 4"}]
[null,null,null,null,null,null,null,null,null,{"$f":"CONCATENATE(Inledn.!G25,\" SE BL.102\")","v":" SE BL.102"},null,null,null,null,null,null,null,null,null,null,{"$f":"CONCATENATE(\"SE BL.\",\" \",Blad103!X36)","v":"SE BL. 103"}]
[]
[null,null,null,null,null,{"$f":"Inledn.!F26","v":305},null,null,null,{"$f":"Inledn.!B26","v":"Reserv UI 5"}]
[null,"E",null,null,null,null,null,null,null,{"$f":"CONCATENATE(Inledn.!G26,\" SE BL.102\")","v":" SE BL.102"}]
[]
[null,null,null,null,null,{"$f":"Inledn.!F27","v":306},null,null,null,{"$f":"Inledn.!B27","v":"Reserv UI 6"}]
[null,null,null,null,null,null,null,null,null,{"$f":"CONCATENATE(Inledn.!G27,\" SE BL.102\")","v":" SE BL.102"}]
[null,"F"]
[null,null,null,null,null,{"$f":"Inledn.!F28","v":307},null,null,null,{"$f":"Inledn.!B28","v":"Reserv UI 7"}]
[null,null,null,null,null,null,null,null,null,{"$f":"CONCATENATE(Inledn.!G28,\" SE BL.102\")","v":" SE BL.102"}]
[]
[null,"G",null,null,null,{"$f":"Inledn.!F29","v":308},null,null,null,{"$f":"Inledn.!B29","v":"Reserv UI 8"}]
[null,null,null,null,null,null,null,null,null,{"$f":"CONCATENATE(Inledn.!G29,\" SE BL.102\")","v":" SE BL.102"}]
[]
[]
[null,"H",null,null,null,null,null,null,null,null,null,null,null,null,null,{"$f":"CONCATENATE(Inledn.!B4,\", \",Inledn.!B5)","v":", "},null,null,null,null,"ARBETSNUMMER",null,"RITNINGSNUMMER"]
[null,null,null,null,null,null,null,null,null,null,null,null,null,null,null,null,null,null,null,null,{"$f":"Inledn.!B9","v":0},null,{"$f":"CONCATENATE(U32,\"00\",X36)","v":"000202"}]
[null,null,null,null,null,null,null,null,null,null,null,null,null,null,null,{"$f":"CONCATENATE(Inledn.!B6,\", \",Inledn.!B7)","v":", "}]
[]
[null,null,null,null,null,null,null,null,null,null,null,null,null,null,null,"YTTRE FÖRBINDNINGSSCHEMA",null,null,null,null,"HANDLÄGGES AV",null,"RITAD AV","BLAD"]
[null,null,null,null,null,null,null,null,null,null,null,null,null,null,null,null,null,null,null,null,{"$f":"Inledn.!B11","v":0},null,"Kjell C",202]
[null,null,null,null,null,null,null,null,null,null,null,null,null,null,null,{"$f":"Inledn.!G3","v":"RELATIONSHANDLING"},null,null,null,null,"Datum",null,"REV.","FORTS.BL"]
[null,null,"NR.","ÄNDRING",{"$f":"Ducbestyckning!E38","v":20220512},"SIGN.","DATUM",{"$f":"Ducbestyckning!H38","v":"010-330 80 00"},null,{"$f":"Ducbestyckning!J38","v":"www.bastec.se"},null,null,null,null,null,null,null,null,null,null,{"$f":"Inledn.!B8","v":"00:00:00"},null,{"$f":"Inledn.!B12","v":"SN "},203]

{"sheet":"Blad203","index":12,"n_rows":38,"n_cols":24,"rows_kept":38,"cut":false,"hidden":false,"merged":[[6,20,8,22],[22,1,25,1],[34,20,34,21],[35,20,35,21],[36,15,37,19],[36,20,36,21],[37,20,37,21],[34,15,35,19],[30,15,31,19],[30,22,30,23],[31,20,33,21],[31,22,33,23],[32,15,33,19],[30,20,30,21],[1,14,1,15],[1,16,1,17],[1,18,1,19],[1,20,1,21],[1,22,1,23],[1,12,1,13],[37,7,37,8],[37,9,37,10],[2,1,5,1],[1,2,1,3],[1,4,1,5],[1,6,1,7],[1,8,1,9],[1,10,1,11],[26,1,29,1],[30,1,37,1],[30,11,37,14],[6,1,9,1],[10,1,13,1],[14,1,17,1],[18,1,21,1]]}
[]
[null,null,0,null,1,null,2,null,3,null,4,null,5,null,6,null,7,null,8,null,9,null,10]
[null,"A"]
[null,null,null,null,null,null,null,null,null,null,null,null,null,null,null,null,{"$f":"Inledn.!F42","v":901},null,null,null,"BAS2 DUC-KOMM."]
[]
[]
[null,"B",null,null,null,null,null,null,null,null,null,null,null,null,null,null,{"$f":"Inledn.!F43","v":903},null,null,null,{"$f":"Inledn.!B43","v":"Modbus"}]
[]
[]
[null,null,null,null,null,null,null,null,null,null,null,null,null,null,null,null,{"$f":"Inledn.!F44","v":905},null,null,null,"M-Bus"]
[null,"C"]
[]
[]
[]
[null,"D"]
[]
[]
[]
[null,"E"]
[]
[]
[]
[null,"F"]
[]
[]
[]
[null,"G"]
[null,null,null,null,null,null,null,null,null,null,null,null,null,null,null,null,null,null,{"$f":"Inledn.!F45","v":"TCP/IP"}]
[]
[]
[null,"H",null,null,null,null,null,null,null,null,null,null,null,null,null,{"$f":"CONCATENATE(Inledn.!B4,\", \",Inledn.!B5)","v":", "},null,null,null,null,"ARBETSNUMMER",null,"RITNINGSNUMMER"]
[null,null,null,null,null,null,null,null,null,null,null,null,null,null,null,null,null,null,null,null,{"$f":"Inledn.!B9","v":0},null,{"$f":"CONCATENATE(U32,\"00\",X36)","v":"000203"}]
[null,null,null,null,null,null,null,null,null,null,null,null,null,null,null,{"$f":"CONCATENATE(Inledn.!B6,\", \",Inledn.!B7)","v":", "}]
[]
[null,null,null,null,null,null,null,null,null,null,null,null,null,null,null,"YTTRE FÖRBINDNINGSSCHEMA",null,null,null,null,"HANDLÄGGES AV",null,"RITAD AV","BLAD"]
[null,null,null,null,null,null,null,null,null,null,null,null,null,null,null,null,null,null,null,null,{"$f":"Inledn.!B11","v":0},null,"Kjell C",203]
[null,null,null,null,null,null,null,null,null,null,null,null,null,null,null,{"$f":"Inledn.!G3","v":"RELATIONSHANDLING"},null,null,null,null,"Datum",null,"REV.","FORTS.BL"]
[null,null,"NR.","ÄNDRING",{"$f":"Ducbestyckning!E38","v":20220512},"SIGN.","DATUM",{"$f":"Ducbestyckning!H38","v":"010-330 80 00"},null,{"$f":"Ducbestyckning!J38","v":"www.bastec.se"},null,null,null,null,null,null,null,null,null,null,{"$f":"Inledn.!B8","v":"00:00:00"},null,{"$f":"Inledn.!B12","v":"SN "},"-"]